fUSD/lending_fUSD_20251231
["ID","MTS","AMOUNT","RATE_DAILY","PERIOD"]
[400206917,1767195862259,10000.01,0.00011539,2]
[400206918,1767195862324,10000.01,0.00011539,2]
[400206919,1767195862392,10000.01,0.00011539,2]
[400206920,1767195862456,10000.01,0.00011539,2]
[400206921,1767195883577,-1600.64488742,0.00011539,2]
[400206922,1767195883669,-10000.01,0.00011539,2]
[400206923,1767195883942,-10000.01,0.00011539,2]
[400206924,1767195887670,-10000.01,0.00011539,2]
[400206925,1767195888070,-10000.01,0.00011539,2]
[400206926,1767195888327,-10000.01,0.00011539,2]
[400206927,1767195888852,-10000.01,0.00011539,2]
[400206928,1767195888975,-10000.01,0.00011539,2]
[400206929,1767195893429,-10000.01,0.00011539,2]
[400206930,1767195893667,-10000.01,0.00011539,2]
[400206931,1767195893899,-10000.01,0.00011539,2]
[400206932,1767195902880,-1200.0,0.00011538,2]
[400206933,1767195902963,-300.0,0.00011538,2]
[400206934,1767195903262,-7000.01,0.00011539,2]
[400206935,1767195903373,-10000.01,0.00011539,2]
[400206936,1767195903530,-10000.01,0.00011539,2]
[400206937,1767195911598,-3072.1631843,0.0001144,2]
[400206938,1767195911804,-3855.6836314,0.00011539,2]
[400206939,1767195911901,-4902.78019157,0.00011539,2]
[400206940,1767195912001,-194.44961686,0.00011539,2]
[400206941,1767195912152,-150.0,0.00011539,2]
[400206942,1767195921153,1889.873202,0.00011482,2]
[400206943,1767195922793,396.4030706,0.0001144,2]
[400206944,1767195946532,306.72120649,0.00011539,2]
[400206945,1767195954307,500.0,0.00011538,2]
[400206946,1767195954404,500.0,0.00011538,2]
[400206947,1767195954519,500.0,0.00011538,2]
[400206948,1767195954632,500.0,0.00011538,2]
[400206949,1767195954754,354.71657584,0.00011538,2]
[400206950,1767195954853,500.0,0.00011538,2]
[400206951,1767195954957,500.0,0.00011538,2]
[400206952,1767195955052,339.11489662,0.00011538,2]
[400206953,1767195955147,500.0,0.00011538,2]
[400206954,1767195955240,156.14245277,0.00011538,2]
[400206955,1767195956614,500.23264625,0.00011538,2]
[400206956,1767195956736,861.27061517,0.00011538,2]
[400206957,1767195956888,861.27061517,0.00011538,2]
[400206958,1767195957029,534.26471909,0.00011538,2]
[400206959,1767195957116,327.00589608,0.00011538,2]
[400206960,1767195957264,861.27061517,0.00011538,2]
[400206961,1767195957425,861.27061517,0.00011538,2]
[400206962,1767195957566,861.27061517,0.00011538,2]
[400206963,1767195957696,861.27061517,0.00011538,2]
[400206964,1767195957830,861.27061517,0.00011538,2]
[400206965,1767195957949,861.27061517,0.00011538,2]
[400206966,1767195958069,861.27061517,0.00011538,2]
[400206967,1767195958200,861.27061517,0.00011538,2]
[400206968,1767195958373,861.27061517,0.00011538,2]
[400206969,1767195958497,861.27061517,0.00011538,2]
[400206970,1767195958628,861.27061517,0.00011538,2]
[400206971,1767195958753,199.02733705,0.00011538,2]
[400206972,1767195958838,662.24327812,0.00011538,2]
[400206973,1767195958962,861.27061517,0.00011538,2]
[400206974,1767195959083,861.27061517,0.00011538,2]
[400206975,1767195959208,861.27061517,0.00011538,2]
[400206976,1767195959332,861.27061517,0.00011538,2]
[400206977,1767195959460,861.27061517,0.00011538,2]
[400206978,1767195959559,861.27061517,0.00011538,2]
[400206979,1767195959704,861.27061517,0.00011538,2]
[400206980,1767195959843,861.27061517,0.00011538,2]
[400206981,1767195959980,861.27061517,0.00011538,2]
[400206982,1767195960123,861.27061517,0.00011538,2]
[400206983,1767195960259,725.06057018,0.00011538,2]
[400206984,1767196037520,5261.1501881,0.00011014,2]
[400206985,1767196037544,5261.1501881,0.00011014,2]
[400206986,1767196037567,1305.1696238,0.00011014,2]
[400206999,1767196108642,-4189.345578,0.00011325,2]
[400207000,1767196108747,-382.12465493,0.0001134,2]
[400207001,1767196108845,-206.1780204,0.00011382,2]
[400207002,1767196108942,-62.58883843,0.0001139,2]
[400207003,1767196117378,-319.53581648,0.0001139,2]
[400207004,1767196117471,-300.0,0.00011439,2]
[400207005,1767196117563,-300.0,0.00011439,2]
[400207006,1767196117654,-1200.0,0.00011439,2]
[400207007,1767196120496,-2648.94329172,0.0001144,2]
[400207013,1767196139138,-4702.12341656,0.0001144,2]
[400207014,1767196139219,-85.9258681,0.0001144,2]
[400207015,1767196139545,-423.91143068,0.0001144,2]
[400207016,1767196139641,-382.12465491,0.0001144,2]
[400207017,1767196139736,-2222.59503051,0.0001153,2]
[400207018,1767196139823,-150.0,0.00011539,2]
[400207019,1767196139910,-500.0,0.00011539,2]
[400207020,1767196140009,-569.6744123,0.00011539,2]
[400207021,1767196140103,-569.6744123,0.00011539,2]
[400207022,1767196140504,-569.6744123,0.00011539,2]
[400207023,1767196140608,-569.6744123,0.00011539,2]
[400207024,1767196140717,-569.6744123,0.00011539,2]
[400207025,1767196140818,-569.6744123,0.00011539,2]
[400207026,1767196140912,-569.6744123,0.00011539,2]
[400207027,1767196141000,-569.6744123,0.00011539,2]
[400207028,1767196141096,-569.6744123,0.00011539,2]
[400207029,1767196141188,-569.6744123,0.00011539,2]
[400207030,1767196141280,-315.5449909,0.00011539,2]
[400207031,1767196141625,-254.1294214,0.00011539,2]
[400207032,1767196141713,-569.6744123,0.00011539,2]
[400207033,1767196141805,-569.6744123,0.00011539,2]
[400207034,1767196141894,-569.6744123,0.00011539,2]
[400207035,1767196141996,-569.6744123,0.00011539,2]
[400207036,1767196142107,-569.6744123,0.00011539,2]
[400207037,1767196142216,-569.6744123,0.00011539,2]
[400207038,1767196142316,-569.6744123,0.00011539,2]
[400207039,1767196142408,-569.6744123,0.00011539,2]
[400207041,1767196142676,-569.6744123,0.00011539,2]
[400207042,1767196142769,-569.6744123,0.00011539,2]
[400207043,1767196142852,-569.6744123,0.00011539,2]
[400207044,1767196142938,-569.6744123,0.00011539,2]
[400207045,1767196143021,-569.6744123,0.00011539,2]
[400207046,1767196143106,-569.6744123,0.00011539,2]
[400207047,1767196143199,-569.6744123,0.00011539,2]
[400207049,1767196143296,-569.6744123,0.00011539,2]
[400207050,1767196143392,-315.5449909,0.00011539,2]
[400207051,1767196143594,-254.1294214,0.00011539,2]
[400207052,1767196143695,-569.6744123,0.00011539,2]
[400207053,1767196143800,-569.6744123,0.00011539,2]
[400207054,1767196144148,-569.6744123,0.00011539,2]
[400207055,1767196144238,-569.6744123,0.00011539,2]
[400207056,1767196144330,-569.6744123,0.00011539,2]
[400207057,1767196144424,-569.6744123,0.00011539,2]
[400207058,1767196144517,-569.6744123,0.00011539,2]
[400207059,1767196144610,-569.6744123,0.00011539,2]
[400207061,1767196144895,-569.6744123,0.00011539,2]
[400207062,1767196144995,-569.6744123,0.00011539,2]
[400207063,1767196145081,-569.6744123,0.00011539,2]
[400207064,1767196145165,-189.74508135,0.00011539,2]
[400207065,1767196145257,-565.02400894,0.00011539,2]
[400207066,1767196145350,-565.02400894,0.00011539,2]
[400207067,1767196145442,-565.02400894,0.00011539,2]
[400207068,1767196145533,-565.02400894,0.00011539,2]
[400207069,1767196145621,-565.02400894,0.00011539,2]
[400207070,1767196146004,-565.02400894,0.00011539,2]
[400207071,1767196146098,-565.02400894,0.00011539,2]
[400207072,1767196146191,-565.02400894,0.00011539,2]
[400207073,1767196146279,-565.02400894,0.00011539,2]
[400207074,1767196146368,-565.02400894,0.00011539,2]
[400207075,1767196146460,-565.02400894,0.00011539,2]
[400207076,1767196146554,-565.02400894,0.00011539,2]
[400207077,1767196146650,-565.02400894,0.00011539,2]
[400207078,1767196146743,-394.60184802,0.00011539,2]
[400207079,1767196147136,-170.42216092,0.00011539,2]
[400207080,1767196147226,-565.02400894,0.00011539,2]
[400207081,1767196147318,-565.02400894,0.00011539,2]
[400207082,1767196147418,-565.02400894,0.00011539,2]
[400207083,1767196147515,-565.02400894,0.00011539,2]
[400207084,1767196147621,-565.02400894,0.00011539,2]
[400207085,1767196147721,-565.02400894,0.00011539,2]
[400207086,1767196147819,-565.02400894,0.00011539,2]
[400207087,1767196147934,-565.02400894,0.00011539,2]
[400207088,1767196148022,-53.75752618,0.00011539,2]
[400207089,1767196148546,-511.26648276,0.00011539,2]
[400207090,1767196148644,-565.02400894,0.00011539,2]
[400207091,1767196148747,-565.02400894,0.00011539,2]
[400207092,1767196148850,-565.02400894,0.00011539,2]
[400207093,1767196148954,-565.02400894,0.00011539,2]
[400207094,1767196149056,-565.02400894,0.00011539,2]
[400207095,1767196149150,-565.02400894,0.00011539,2]
[400207096,1767196149248,-562.56738282,0.00011539,2]
[400207097,1767196149342,-509.48677874,0.00011539,2]
[400207098,1767196149882,-53.08060408,0.00011539,2]
[400207099,1767196149976,-562.56738282,0.00011539,2]
[400207100,1767196150073,-562.56738282,0.00011539,2]
[400207101,1767196150165,-562.56738282,0.00011539,2]
[400207102,1767196150254,-562.56738282,0.00011539,2]
[400207104,1767196150343,-562.56738282,0.00011539,2]
[400207106,1767196150577,-562.56738282,0.00011539,2]
[400207107,1767196150674,-562.56738282,0.00011539,2]
[400207108,1767196150754,-562.56738282,0.00011539,2]
[400207110,1767196150839,-330.2032839,0.00011539,2]
[400207112,1767196152613,1873.49,5.51e-05,2]
[400207114,1767196153019,1873.49,5.8e-05,2]
[400207115,1767196153200,-232.36409892,0.00011539,2]
[400207116,1767196153284,-562.56738282,0.00011539,2]
[400207117,1767196153370,-562.56738282,0.00011539,2]
[400207118,1767196153459,-562.56738282,0.00011539,2]
[400207119,1767196153546,-562.56738282,0.00011539,2]
[400207120,1767196153635,-562.56738282,0.00011539,2]
[400207121,1767196153721,-562.56738282,0.00011539,2]
[400207122,1767196153805,-562.56738282,0.00011539,2]
[400207123,1767196153888,-562.56738282,0.00011539,2]
[400207124,1767196154021,209.0005643,6.09e-05,2]
[400207125,1767196154044,1664.4894357,6.09e-05,2]
[400207126,1767196154269,-562.56738282,0.00011539,2]
[400207127,1767196154557,1873.49,6.38e-05,2]
[400207128,1767196154821,1873.49,6.67e-05,2]
[400207129,1767196155392,1873.49,6.96e-05,2]
[400207130,1767196155514,1873.49,7.25e-05,2]
[400207131,1767196155775,1380.91523436,7.54e-05,2]
[400207132,1767196155845,492.57476564,7.54e-05,2]
[400207133,1767196156102,1873.49,7.83e-05,2]
[400207134,1767196156462,1873.49,8.12e-05,2]
[400207135,1767196156740,1873.49,8.41e-05,2]
[400207136,1767196156937,1873.49,8.7e-05,2]
[400207137,1767196157302,1873.49,8.99e-05,2]
[400207138,1767196157583,139.98523436,9.28e-05,2]
[400207139,1767196157609,1733.50476564,9.28e-05,2]
[400207140,1767196158074,1873.49,9.57e-05,2]
[400207141,1767196158174,1873.49,9.86e-05,2]
[400207142,1767196158267,1873.49,0.0001015,2]
[400207143,1767196158530,1873.49,0.0001044,2]
[400207144,1767196158916,1873.49,0.0001073,2]
[400207145,1767196159229,632.56,0.0001102,2]
[400207146,1767196159309,1240.93,0.0001102,2]
[400207153,1767196170540,500.0,0.00011539,2]
[400207154,1767196170628,500.0,0.00011539,2]
[400207155,1767196170708,493.48632262,0.00011539,2]
[400207156,1767196171808,500.0,0.00011539,2]
[400207157,1767196172076,500.0,0.00011539,2]
[400207158,1767196172184,500.0,0.00011539,2]
[400207159,1767196172301,253.29763033,0.00011539,2]
[400207162,1767196181883,431.54992388,0.0001,2]
[400207167,1767196198539,165.94292473,0.00011539,2]
[400207170,1767196200928,340.99810969,0.00011248,2]
[400207171,1767196201331,300.0,0.00011539,2]
[400207172,1767196201423,1200.0,0.00011539,2]
[400207174,1767196201510,300.0,0.00011539,2]
[400207176,1767196203366,428.0889785,0.0001144,2]
[400207177,1767196203483,244.0,0.0001154,2]
[400207180,1767196208127,200.0,0.0001154,2]
[400207181,1767196220235,-259.36606633,0.0001154,2]
[400207182,1767196220424,184.01582808,0.00011539,2]
[400207185,1767196222882,-163.58398172,0.0001154,2]
[400207186,1767196224957,-341.61754358,0.0001154,2]
[400207187,1767196226436,-300.0,0.0001154,2]
[400207188,1767196228021,-170.87836276,0.0001154,2]
[400207189,1767196230101,-158.06859676,0.0001154,2]
[400207196,1767196232078,-500.0,0.0001154,2]
[400207197,1767196232090,-61738.10087205,0.0001154,2]
[400207198,1767196232102,-5161.08264946,0.0001154,2]
[400207199,1767196232114,-10700.71846281,0.0001154,2]
[400207200,1767196232125,-811.64281846,0.0001154,2]
[400207201,1767196232137,-2109.64631498,0.0001154,2]
[400207202,1767196232235,-238.0,0.0001154,2]
[400207203,1767196232250,-23979.56597522,0.0001154,2]
[400207204,1767196232263,-2200.42617285,0.0001154,2]
[400207205,1767196232275,-2400.0,0.0001154,2]
[400207206,1767196232287,-11055.32048776,0.0001154,2]
[400207207,1767196232299,-1650.0,0.0001154,2]
[400207208,1767196232311,-2455.1720478,0.0001154,2]
[400207209,1767196232325,-279.26125715,0.0001154,2]
[400207219,1767196234982,-160.71407549,0.0001154,2]
[400207226,1767196238354,-1897.33916537,0.0001154,2]
[400207227,1767196238367,-706.55591932,0.0001154,2]
[400207228,1767196238379,-304.0,0.0001154,2]
[400207229,1767196238454,-28358.10237597,0.0001154,2]
[400207230,1767196238465,-252.20002668,0.0001154,2]
[400207231,1767196238478,-847.97755342,0.0001154,2]
[400207232,1767196238489,-662.04070555,0.0001154,2]
[400207233,1767196238503,-15801.2485822,0.0001154,2]
[400207234,1767196238555,-500.0,0.0001154,2]
[400207246,1767196238784,-239.82241935,0.0001154,2]
[400207375,1767196240136,-316.81784206,0.0001154,2]
[400207377,1767196240148,-364.45330319,0.0001154,2]
[400207383,1767196240192,-389.36567411,0.0001154,2]
[400207393,1767196240284,-420.86114321,0.0001154,2]
[400207396,1767196240296,-3391.7295467,0.0001154,2]
[400207398,1767196240308,-8729.85355906,0.0001154,2]
[400207400,1767196240321,-500.0,0.0001154,2]
[400207434,1767196240630,-3745.88,0.0001154,2]
[400207436,1767196240643,-473.93335833,0.0001154,2]
[400207439,1767196240654,-2911.12206947,0.0001154,2]
[400207441,1767196240666,-922.18333418,0.0001154,2]
[400207593,1767196242090,-216.23524429,0.0001154,2]
[400207774,1767196243862,2958.63028217,0.00011,2]
[400207784,1767196243949,10000.01,0.00011,2]
[400207797,1767196244059,10000.01,0.00011,2]
[400207807,1767196244147,10000.01,0.00011,2]
[400207812,1767196244173,1863.15598676,0.00011,2]
[400207815,1767196244198,5261.1501881,0.00011,2]
[400207819,1767196244223,5261.1501881,0.00011,2]
[400207822,1767196244247,4407.35335487,0.00011,2]
[400207848,1767196244488,-227.14528256,0.0001154,2]
[400207927,1767196245245,-512.6900035,0.0001154,2]
[400207929,1767196245258,-440.085,0.0001154,2]
[400207931,1767196245270,-393.39206397,0.0001154,2]
[400207934,1767196245283,-261.98000005,0.0001154,2]
[400207936,1767196245296,-688.7483796,0.0001154,2]
[400207943,1767196245358,-1797.61271401,0.0001154,2]
[400207946,1767196245370,-2584.11823244,0.0001154,2]
[400208004,1767196245962,853.79683323,0.00011003,2]
[400208008,1767196245986,5261.1501881,0.00011003,2]
[400208011,1767196246009,5261.1501881,0.00011003,2]
[400208014,1767196246032,4518.30279057,0.00011003,2]
[400208032,1767196246199,-176445.88086828,0.0001154,2]
[400208034,1767196246210,-612.84989598,0.0001154,2]
[400208037,1767196246222,-327.410967,0.0001154,2]
[400208039,1767196246233,-657.92929977,0.0001154,2]
[400208047,1767196246307,-3337.35029073,0.0001154,2]
[400208049,1767196246318,-459.37326215,0.0001154,2]
[400208057,1767196246382,-1345.8356855,0.0001154,2]
[400208062,1767196246421,-379.12940536,0.0001154,2]
[400208126,1767196247052,-398.36875494,0.0001154,2]
[400208253,1767196248513,-536.770178,0.0001154,2]
[400208382,1767196249882,-357.26369565,0.0001154,2]
[400208538,1767196251395,-170.90443543,0.0001154,2]
[400208825,1767196254335,-367.94958697,0.0001154,2]
[400208970,1767196255733,-300.0,0.0001154,2]
[400209011,1767196257814,-932.80499287,0.0001154,2]
[400209012,1767196259392,-237.68370971,0.0001154,2]
[400209013,1767196260935,-531.82285602,0.0001154,2]
[400209014,1767196263212,-150.0,0.00011539,2]
[400209015,1767196263238,-137.24127558,0.00011539,2]
[400209016,1767196267041,742.84739753,0.0001097,2]
[400209018,1767196280243,-403.23602683,0.00010914,2]
[400209019,1767196282729,-217.57605846,0.00010914,2]
[400209020,1767196284382,-412.29400612,0.0001097,2]
[400209021,1767196286480,-172.16790242,0.0001097,2]
[400209022,1767196288762,-198.16501142,0.0001097,2]
[400209023,1767196290825,-253.15861808,0.0001097,2]
[400209024,1767196291805,-460.62293557,0.0001097,2]
[400209025,1767196292139,-921.24587114,0.0001097,2]
[400209026,1767196292438,-1842.49174228,0.0001097,2]
[400209027,1767196292745,-3684.98348456,0.0001097,2]
[400209028,1767196292949,-2630.04303088,0.0001097,2]
[400209029,1767196293031,-162.75872442,0.00011539,2]
[400209030,1767196293687,2178.115,0.00011309,2]
[400209031,1767196293831,160.536,0.00011309,2]
[400209032,1767196297159,2075.7554894,0.00011482,2]
[400209033,1767196297235,110.9559296,0.00011482,2]
[400209034,1767196320661,192.50448682,0.0001144,2]
[400209035,1767196323829,4026.54298287,0.0001144,2]
[400209036,1767196329901,151.0,0.0001154,2]
[400209037,1767196330748,151.0,0.0001154,2]
[400209038,1767196331349,151.0,0.0001154,2]
[400209039,1767196331686,151.0,0.00011537,2]
[400209040,1767196331944,151.0,0.0001154,2]
[400209041,1767196332573,153.70166196,0.0001154,2]
[400209042,1767196339155,-1859.13088846,0.0001154,2]
[400209043,1767196339941,-157.07740716,0.0001154,2]
[400209044,1767196340755,-10000.01,0.0001154,2]
[400209045,1767196340988,-10000.01,0.0001154,2]
[400209046,1767196341220,-10000.01,0.0001154,2]
[400209047,1767196341446,-10000.01,0.0001154,2]
[400209048,1767196341647,-10000.01,0.0001154,2]
[400209049,1767196341881,-10000.01,0.0001154,2]
[400209050,1767196342186,-10000.01,0.0001154,2]
[400209051,1767196346897,-1287.06489993,0.0001144,2]
[400209052,1767196346980,-7425.88020014,0.0001144,2]
[400209053,1767196355802,-417.33616778,0.0001154,2]
[400209055,1767196357755,-224.27345533,0.0001154,2]
[400209056,1767196359289,-532.48866,0.0001154,2]
[400209057,1767196435449,556.54080741,0.00013501,7]
[400209077,1767196482243,-399.65569701,0.00011248,2]
[400209079,1767196482316,-151.0,0.00011537,2]
[400209081,1767196482389,-174.63671612,0.00011537,2]
[400209082,1767196482463,-1200.0,0.00011539,2]
[400209083,1767196482539,-150.0,0.00011539,2]
[400209084,1767196482629,-500.0,0.00011539,2]
[400209085,1767196482721,-500.0,0.00011539,2]
[400209086,1767196482816,-500.0,0.00011539,2]
[400209088,1767196482897,-500.0,0.00011539,2]
[400209089,1767196482976,-158.02364788,0.00011539,2]
[400209090,1767196484546,594.2092946,0.0001144,2]
[400209091,1767196484908,204.34609962,0.00011539,2]
[400209092,1767196489432,587.77,0.00011184,2]
[400209093,1767196490542,-153.72,0.0001154,2]
[400209094,1767196491699,-169.88064077,0.0001154,2]
[400209104,1767196493748,-163.14635088,0.0001154,2]
[400209109,1767196497344,-197.05912056,0.0001154,2]
[400209110,1767196499244,-309.33107923,0.0001154,2]
[400209111,1767196501382,147.05248376,0.00011539,2]
[400209112,1767196501458,1052.94751624,0.00011539,2]
[400209113,1767196501659,300.0,0.00011539,2]
[400209114,1767196501945,-168.26156098,0.0001154,2]
[400209117,1767196503736,574.50328244,0.00011539,2]
[400209118,1767196504095,-286.77639543,0.0001154,2]
[400209119,1767196509071,-177.91265073,0.0001154,2]
[400209129,1767196511402,-200.0,0.0001154,2]
[400209135,1767196513687,-238.3378692,0.0001154,2]
[400209144,1767196558997,-215.15,0.00011197,2]
[400209145,1767196559108,-500.0,0.00011538,2]
[400209146,1767196559219,-500.0,0.00011538,2]
[400209147,1767196561556,300.0,0.00011539,2]
[400209148,1767196566353,-176.88943954,0.0001154,2]
[400209149,1767196567909,-174.2340719,0.0001154,2]
[400209150,1767196568646,954.1249,0.0001144,2]
[400209152,1767196569916,-372.14780938,0.0001154,2]
[400209153,1767196572694,-803.44715269,0.0001154,2]
[400209154,1767196574232,-212.59252486,0.0001154,2]
[400209155,1767196636336,-2203.553,0.0001144,2]
[400209156,1767196636418,-236.2092,0.0001144,2]
[400209157,1767196636502,-300.0,0.00011538,2]
[400209158,1767196636588,-300.0,0.00011538,2]
[400209159,1767196636676,-150.0,0.00011539,2]
[400209160,1767196636767,-274.86887731,0.00011539,2]
[400209161,1767196636855,-500.0,0.00011539,2]
[400209162,1767196636946,-500.0,0.00011539,2]
[400209163,1767196637032,-443.59258645,0.00011539,2]
[400209164,1767196642203,-500.0,0.00011539,2]
[400209165,1767196642288,-500.0,0.00011539,2]
[400209166,1767196642373,-500.0,0.00011539,2]
[400209167,1767196642456,-469.53586226,0.00011539,2]
[400209168,1767196642539,-184.38102748,0.00011539,2]
[400209169,1767196642622,-293.5341612,0.00011539,2]
[400209170,1767196642701,-200.0,0.0001154,2]
[400209171,1767196643822,500.0,0.00011539,2]
[400209172,1767196643951,500.0,0.00011539,2]
[400209173,1767196644070,500.0,0.00011539,2]
[400209174,1767196644187,500.0,0.00011539,2]
[400209175,1767196644306,500.0,0.00011539,2]
[400209176,1767196644435,500.0,0.00011539,2]
[400209177,1767196644555,500.0,0.00011539,2]
[400209178,1767196644672,500.0,0.00011539,2]
[400209179,1767196648813,-250.0,0.0001154,2]
[400209180,1767196663837,-4384.37,0.00011298,2]
[400209181,1767196663950,-373.98590577,0.00011539,2]
[400209182,1767196664050,-215.17291703,0.00011539,2]
[400209183,1767196670220,-190.91840058,0.0001154,2]
[400209184,1767196672311,-198.33595259,0.0001154,2]
[400209185,1767196674047,-183.97002739,0.0001154,2]
[400209186,1767196675938,-239.69824731,0.0001154,2]
[400209187,1767196679220,52.9523544,8.981e-05,2]
[400209188,1767196679295,107.8876456,8.981e-05,2]
[400209189,1767196679435,160.84,0.00010104,2]
[400209190,1767196679482,-205.34122303,0.0001154,2]
[400209191,1767196679650,160.84,0.00011227,2]
[400209192,1767196680756,-173.00309202,0.0001154,2]
[400209193,1767196681393,300.0,0.00011539,2]
[400209194,1767196682822,-369.77900279,0.0001154,2]
[400209195,1767196686873,-248.00629029,0.0001154,2]
[400209196,1767196688370,-196.34804293,0.0001154,2]
[400209197,1767196690710,3287.0017,0.0001144,2]
[400209198,1767196691070,-291.99904632,0.0001154,2]
[400209199,1767196691744,1200.0,0.00011539,2]
[400209200,1767196693666,-240.27207393,0.0001154,2]
[400209201,1767196697035,4783.4406544,0.0001144,2]
[400209202,1767196697116,10000.01,0.0001144,2]
[400209203,1767196697196,10000.01,0.0001144,2]
[400209204,1767196697276,10000.01,0.0001144,2]
[400209205,1767196697356,10000.01,0.0001144,2]
[400209206,1767196697435,10000.01,0.0001144,2]
[400209207,1767196697515,10000.01,0.0001144,2]
[400209208,1767196697599,4526.5314456,0.0001144,2]
[400209209,1767196731331,8775.21741347,0.0001144,2]
[400209210,1767196741526,300.0,0.00011539,2]
[400209211,1767196744098,924.79258653,0.0001144,2]
[400209212,1767196744189,2920.4257341,0.0001144,2]
[400209213,1767196749886,500.0,0.00011388,2]
[400209214,1767196750559,500.0,0.00011388,2]
[400209215,1767196750716,500.0,0.00011443,2]
[400209216,1767196750840,150.0,0.00011388,2]
[400209217,1767196750930,500.0,0.00011498,2]
[400209218,1767196751036,500.0,0.00011388,2]
[400209219,1767196751134,500.0,0.00011443,2]
[400209220,1767196751262,500.0,0.00011443,2]
[400209221,1767196751368,500.0,0.00011498,2]
[400209222,1767196751485,500.0,0.00011498,2]
[400209223,1767196752299,150.0,0.00011388,2]
[400209224,1767196752558,274.33281031,0.00011443,2]
[400209225,1767196752798,500.0,0.00011388,2]
[400209226,1767196753299,500.0,0.00011443,2]
[400209227,1767196753403,500.0,0.00011388,2]
[400209228,1767196753506,500.0,0.00011388,2]
[400209229,1767196753609,5.25145559,0.00011388,2]
[400209230,1767196775309,-179.35263376,0.00010899,2]
[400209231,1767196778606,-360.06694479,0.00010899,2]
[400209232,1767196780008,-193.66464589,0.00010899,2]
[400209233,1767196781997,-173.57223932,0.00010899,2]
[400209234,1767196784047,-231.28536514,0.00010899,2]
[400209235,1767196787447,-574.7156495,0.00010899,2]
[400209236,1767196789976,-153.65871412,0.00010899,2]
[400209237,1767196793276,-413.79018312,0.00010899,2]
[400209238,1767196794805,-333.14415119,0.00010899,2]
[400209239,1767196796355,-245.25,0.00010894,2]
[400209240,1767196799082,-259.00579205,0.00010894,2]
[400209241,1767196800330,-153.74906024,0.00010894,2]
[400209242,1767196803853,-167.82927429,0.00010893,2]
[400209243,1767196805691,-1032.17072571,0.00010893,2]
[400209244,1767196805823,-300.0,0.00010893,2]
[400209245,1767196805928,-300.0,0.00010893,2]
[400209246,1767196806031,-300.0,0.00010893,2]
[400209247,1767196808095,-281.24640997,0.00010894,2]
[400209248,1767196808587,155.594501,7.945e-05,2]
[400209249,1767196809611,-263.72438278,0.00010894,2]
[400209250,1767196811579,-182.78144382,0.00010894,2]
[400209251,1767196814750,-175.63794801,0.00010894,2]
[400209252,1767196816773,-377.00298481,0.00010894,2]
[400209253,1767196819518,-356.1549256,0.00010894,2]
[400209254,1767196822585,-384.22816528,0.00010894,2]
[400209255,1767196824180,-329.57088581,0.00010894,2]
[400209256,1767196825660,-172.04565819,0.00010894,2]
[400209257,1767196827766,-227.40672175,0.00010894,2]
[400209258,1767196830341,-260.00560258,0.00010894,2]
[400209259,1767196831887,-182.34796988,0.00010894,2]
[400209260,1767196834738,-317.78926653,0.00010894,2]
[400209261,1767196835941,-3029.14994402,0.00010894,2]
[400209262,1767196836128,-10000.01,0.00010894,2]
[400209263,1767196836377,-2203.07283868,0.00010894,2]
[400209264,1767196836487,-250.0,0.00010897,2]
[400209265,1767196836765,-5093.86432264,0.00010899,2]
[400209266,1767196836851,-3106.86515053,0.00010899,2]
[400209267,1767196836946,-300.0,0.00011059,2]
[400209268,1767196837035,-300.0,0.00011059,2]
[400209269,1767196837127,-166.66,0.00011215,2]
[400209270,1767196837219,-494.74854441,0.00011388,2]
[400209271,1767196837309,-150.0,0.00011388,2]
[400209272,1767196837398,-150.0,0.00011388,2]
[400209273,1767196837483,-150.0,0.00011388,2]